[Event "*** Titled Tuesday 3|2 Blitz"]
[Site "Chess.com"]
[Date "2014.12.30"]
[Round "2"]
[White "162a54f5d"]
[Black "Vandros57"]
[Result "1-0"]
[WhiteElo "2298"]
[BlackElo "1842"]
[TimeControl "180+2"]
[EndTime "11:21:57 PST"]
[Termination "162a54f5d won by resignation"]

1. d4 {[%clk 0:03:00]} 1... d5 {[%clk 0:02:58]} 2. c4 {[%clk 0:02:59.7]} 2... e6
{[%clk 0:02:57.6]} 3. Nf3 {[%clk 0:02:59.7]} 3... Nf6 {[%clk 0:02:56.9]} 4. g3
{[%clk 0:03:00.8]} 4... Bb4+ {[%clk 0:02:54]} 5. Bd2 {[%clk 0:02:56.8]} 5...
Bxd2+ {[%clk 0:02:52.8]} 6. Nbxd2 {[%clk 0:02:53.3]} 6... O-O {[%clk 0:02:52.8]}
7. Bg2 {[%clk 0:02:53.8]} 7... Nbd7 {[%clk 0:02:50.8]} 8. O-O {[%clk 0:02:52.5]}
8... b6 {[%clk 0:02:46.8]} 9. cxd5 {[%clk 0:02:47.7]} 9... exd5 {[%clk
0:02:44.9]} 10. Rc1 {[%clk 0:02:48.4]} 10... Bb7 {[%clk 0:02:43.8]} 11. Qc2
{[%clk 0:02:35]} 11... Rc8 {[%clk 0:02:42.8]} 12. Rfd1 {[%clk 0:02:28.3]} 12...
Qe7 {[%clk 0:02:36.2]} 13. Nb1 {[%clk 0:02:13.8]} 13... c5 {[%clk 0:02:33.2]}
14. dxc5 {[%clk 0:02:13.3]} 14... Nxc5 {[%clk 0:02:24.8]} 15. Qd2 {[%clk
0:01:59.6]} 15... Rfe8 {[%clk 0:02:20.1]} 16. Nd4 {[%clk 0:02:00]} 16... Nce4
{[%clk 0:02:13.8]} 17. Qe1 {[%clk 0:01:55.1]} 17... g6 {[%clk 0:02:08.3]} 18.
Nc3 {[%clk 0:01:50.9]} 18... Nxc3 {[%clk 0:02:04.7]} 19. Rxc3 {[%clk 0:01:51.3]}
19... Ne4 {[%clk 0:02:00.5]} 20. Rcc1 {[%clk 0:01:48.6]} 20... Rxc1 {[%clk
0:01:53.5]} 21. Rxc1 {[%clk 0:01:49.2]} 21... Rc8 {[%clk 0:01:52.4]} 22. Rxc8+
{[%clk 0:01:29.9]} 22... Bxc8 {[%clk 0:01:52.5]} 23. Qc1 {[%clk 0:01:31.4]}
23... Bb7 {[%clk 0:01:39]} 24. a3 {[%clk 0:01:27.9]} 24... Kg7 {[%clk
0:01:34.9]} 25. e3 {[%clk 0:01:25.7]} 25... Qc5 {[%clk 0:01:29.1]} 26. Qxc5
{[%clk 0:01:08.3]} 26... Nxc5 {[%clk 0:01:22.7]} 27. Nb5 {[%clk 0:01:03.2]}
27... a6 {[%clk 0:01:19.7]} 28. Nc3 {[%clk 0:01:02.3]} 28... Ne4 {[%clk
0:01:03.4]} 29. Bxe4 {[%clk 0:00:56.7]} 29... dxe4 {[%clk 0:01:02.8]} 30. Na4
{[%clk 0:00:58.3]} 30... b5 {[%clk 0:00:59.9]} 31. Nc5 {[%clk 0:00:58.9]} 31...
Bc8 {[%clk 0:00:40]} 32. Nxe4 {[%clk 0:00:59.5]} 32... f5 {[%clk 0:00:38.4]} 33.
Nc3 {[%clk 0:00:57.6]} 33... Kf6 {[%clk 0:00:36.7]} 34. Kf1 {[%clk 0:00:55.8]}
34... Ke5 {[%clk 0:00:37.5]} 35. Ke2 {[%clk 0:00:57.1]} 35... g5 {[%clk
0:00:36.4]} 36. f4+ {[%clk 0:00:51.3]} 36... gxf4 {[%clk 0:00:34.5]} 37. gxf4+
{[%clk 0:00:53.2]} 37... Kd6 {[%clk 0:00:33]} 38. Kd3 {[%clk 0:00:54.7]} 38...
Bb7 {[%clk 0:00:32.4]} 39. Kd4 {[%clk 0:00:53.3]} 39... h6 {[%clk 0:00:31.4]}
40. e4 {[%clk 0:00:44.8]} 40... fxe4 {[%clk 0:00:31.2]} 41. Nxe4+ {[%clk
0:00:46.4]} 41... Ke7 {[%clk 0:00:29.8]} 42. Ke5 {[%clk 0:00:46.2]} 42... a5
{[%clk 0:00:20.7]} 43. b4 {[%clk 0:00:46.1]} 43... axb4 {[%clk 0:00:18.5]} 44.
axb4 {[%clk 0:00:48]} 44... Bc6 {[%clk 0:00:12.7]} 45. f5 {[%clk 0:00:45.5]}
45... Be8 {[%clk 0:00:12.1]} 46. Nd6 {[%clk 0:00:45.8]} 46... Bd7 {[%clk
0:00:10.7]} 47. f6+ {[%clk 0:00:44.1]} 47... Kf8 {[%clk 0:00:11.7]} 48. Kd4
{[%clk 0:00:44.9]} 48... Bc6 {[%clk 0:00:10.9]} 49. Kc5 {[%clk 0:00:45.5]} 49...
Bd7 {[%clk 0:00:12]} 50. Kb6 {[%clk 0:00:45.6]} 50... Be8 {[%clk 0:00:11.3]} 51.
Nxe8 {[%clk 0:00:45.5]} 51... Kxe8 {[%clk 0:00:12.2]} 52. Kxb5 {[%clk
0:00:46.8]} 52... Kf7 {[%clk 0:00:13.1]} 53. Kc6 {[%clk 0:00:46.4]} 53... Kxf6
{[%clk 0:00:14.3]} 54. b5 {[%clk 0:00:48]} 54... Kg5 {[%clk 0:00:15.4]} 55. b6
{[%clk 0:00:49.9]} 55... Kh4 {[%clk 0:00:16.5]} 56. b7 {[%clk 0:00:51.8]} 56...
Kh3 {[%clk 0:00:17.6]} 57. b8=Q {[%clk 0:00:53.7]} 1-0

[Event "*** Titled Tuesday 3|2 Blitz"]
[Site "Chess.com"]
[Date "2014.12.30"]
[Round "2"]
[White "ViennaRocket"]
[Black "LADIESGET2KNOWME"]
[Result "0-1"]
[WhiteElo "2212"]
[BlackElo "2229"]
[TimeControl "180+2"]
[EndTime "11:23:12 PST"]
[Termination "LADIESGET2KNOWME won by resignation"]

1. d4 {[%clk 0:03:00]} 1... Nf6 {[%clk 0:02:57.9]} 2. c4 {[%clk 0:03:01.1]} 2...
g6 {[%clk 0:02:59.4]} 3. Nc3 {[%clk 0:03:02.4]} 3... Bg7 {[%clk 0:03:01.3]} 4.
e4 {[%clk 0:03:03.9]} 4... d6 {[%clk 0:03:03.2]} 5. f4 {[%clk 0:03:05.4]} 5...
O-O {[%clk 0:03:04.5]} 6. Nf3 {[%clk 0:03:06.8]} 6... c5 {[%clk 0:03:06]} 7. d5
{[%clk 0:03:08.2]} 7... e6 {[%clk 0:03:07.6]} 8. Be2 {[%clk 0:03:09.5]} 8...
exd5 {[%clk 0:03:08.5]} 9. exd5 {[%clk 0:03:11.1]} 9... Bf5 {[%clk 0:03:00.4]}
10. O-O {[%clk 0:03:11.1]} 10... Re8 {[%clk 0:03:00]} 11. Bd3 {[%clk 0:03:10.9]}
11... Ne4 {[%clk 0:03:01.1]} 12. Nxe4 {[%clk 0:03:11]} 12... Bxe4 {[%clk
0:03:02.2]} 13. f5 {[%clk 0:03:12.7]} 13... Nd7 {[%clk 0:02:51.7]} 14. Ng5
{[%clk 0:03:12.2]} 14... Bxd3 {[%clk 0:02:46]} 15. Qxd3 {[%clk 0:03:12.6]} 15...
Nf6 {[%clk 0:02:06.6]} 16. fxg6 {[%clk 0:03:07.5]} 16... hxg6 {[%clk 0:02:08]}
17. Qh3 {[%clk 0:02:56.7]} 17... Qc8 {[%clk 0:02:04.8]} 18. Qxc8 {[%clk
0:02:01.2]} 18... Raxc8 {[%clk 0:02:06.7]} 19. Bf4 {[%clk 0:02:02.1]} 19... Ne4
{[%clk 0:01:36.4]} 20. Nxe4 {[%clk 0:01:32.6]} 20... Rxe4 {[%clk 0:01:38.3]} 21.
Bxd6 {[%clk 0:01:32.4]} 21... Rxc4 {[%clk 0:01:35.2]} 22. b3 {[%clk 0:01:13.7]}
22... Bd4+ {[%clk 0:01:20.1]} 23. Kh1 {[%clk 0:01:14]} 23... Rc2 {[%clk
0:01:21.6]} 24. Rac1 {[%clk 0:01:04.7]} 24... Rxa2 {[%clk 0:01:07.1]} 25. Be7
{[%clk 0:00:55.5]} 25... Rc7 {[%clk 0:00:30.8]} 26. d6 {[%clk 0:00:49.6]} 26...
Rd7 {[%clk 0:00:31.8]} 27. h3 {[%clk 0:00:41.9]} 27... Rb2 {[%clk 0:00:24.5]}
28. Rf3 {[%clk 0:00:40.5]} 28... f5 {[%clk 0:00:24.3]} 29. g4 {[%clk 0:00:22]}
29... Kf7 {[%clk 0:00:24.3]} 30. gxf5 {[%clk 0:00:23]} 30... gxf5 {[%clk
0:00:25.8]} 31. Rxf5+ {[%clk 0:00:24.2]} 31... Ke6 {[%clk 0:00:27.3]} 32. Rf3
{[%clk 0:00:25.6]} 32... Kd5 {[%clk 0:00:26.4]} 33. Rd1 {[%clk 0:00:25.7]} 33...
b5 {[%clk 0:00:25]} 34. h4 {[%clk 0:00:26.7]} 34... Re2 {[%clk 0:00:20.3]} 35.
h5 {[%clk 0:00:26.5]} 35... Rexe7 {[%clk 0:00:17]} 36. dxe7 {[%clk 0:00:26.5]}
36... Rxe7 {[%clk 0:00:18.9]} 37. h6 {[%clk 0:00:25]} 37... Rh7 {[%clk
0:00:18.5]} 38. Rh3 {[%clk 0:00:26.2]} 38... a5 {[%clk 0:00:18]} 39. Rh5+ {[%clk
0:00:27.3]} 39... Ke4 {[%clk 0:00:18]} 40. Kg2 {[%clk 0:00:26.9]} 40... a4
{[%clk 0:00:18.6]} 41. bxa4 {[%clk 0:00:28.1]} 41... bxa4 {[%clk 0:00:19.4]} 42.
Re1+ {[%clk 0:00:29.5]} 42... Kd3 {[%clk 0:00:18.6]} 43. Re6 {[%clk 0:00:30.3]}
43... Kc4 {[%clk 0:00:16.9]} 44. Ra6 {[%clk 0:00:31.6]} 44... Kb5 {[%clk
0:00:16.1]} 45. Ra8 {[%clk 0:00:32.6]} 45... Be3 {[%clk 0:00:16.5]} 46. Kf3
{[%clk 0:00:29.2]} 46... Rxh6 {[%clk 0:00:14]} 47. Rxh6 {[%clk 0:00:27.2]} 47...
Bxh6 {[%clk 0:00:15.9]} 48. Ke4 {[%clk 0:00:28.6]} 48... Bc1 {[%clk 0:00:13.9]}
49. Kd3 {[%clk 0:00:29.4]} 49... a3 {[%clk 0:00:13.8]} 50. Kc3 {[%clk
0:00:30.7]} 50... Bb2+ {[%clk 0:00:12.4]} 51. Kb3 {[%clk 0:00:32]} 51... c4+
{[%clk 0:00:12.3]} 52. Ka2 {[%clk 0:00:31.7]} 52... Kb4 {[%clk 0:00:12.8]} 53.
Rc8 {[%clk 0:00:32.1]} 53... Kc3 {[%clk 0:00:12.7]} 54. Rd8 {[%clk 0:00:33.3]}
54... Kc2 {[%clk 0:00:13.2]} 55. Rd7 {[%clk 0:00:34.6]} 55... c3 {[%clk
0:00:13.8]} 56. Rd6 {[%clk 0:00:36]} 56... Kc1 {[%clk 0:00:12.8]} 57. Rd5 {[%clk
0:00:35.9]} 57... c2 {[%clk 0:00:08.8]} 58. Rd7 {[%clk 0:00:36.6]} 58... Bc3
{[%clk 0:00:07.9]} 59. Rd8 {[%clk 0:00:36.7]} 59... Bd2 {[%clk 0:00:07.8]} 60.
Rh8 {[%clk 0:00:37.7]} 60... Kd1 {[%clk 0:00:08]} 61. Rh1+ {[%clk 0:00:38.6]}
61... Be1 {[%clk 0:00:08.7]} 62. Rh2 {[%clk 0:00:17.2]} 62... c1=Q {[%clk
0:00:09]} 63. Rd2+ {[%clk 0:00:18.2]} 63... Qxd2+ {[%clk 0:00:09]} 64. Kb3
{[%clk 0:00:19.6]} 64... a2 {[%clk 0:00:09]} 65. Kc4 {[%clk 0:00:20.7]} 65...
a1=Q {[%clk 0:00:09.2]} 0-1

[Event "*** Titled Tuesday 3|2 Blitz"]
[Site "Chess.com"]
[Date "2014.12.30"]
[Round "2"]
[White "rhungaski"]
[Black "AlexanderL"]
[Result "1/2-1/2"]
[WhiteElo "2398"]
[BlackElo "2464"]
[TimeControl "180+2"]
[EndTime "11:23:56 PST"]
[Termination "Game drawn by agreement"]

1. e4 {[%clk 0:02:59.8]} 1... e6 {[%clk 0:02:58.4]} 2. d4 {[%clk 0:03:00.1]}
2... d5 {[%clk 0:02:57.4]} 3. exd5 {[%clk 0:03:02]} 3... exd5 {[%clk 0:02:58.4]}
4. Nf3 {[%clk 0:03:03.9]} 4... Nf6 {[%clk 0:02:59.7]} 5. Bg5 {[%clk 0:03:04.9]}
5... Be7 {[%clk 0:03:00.9]} 6. Bd3 {[%clk 0:03:05.7]} 6... O-O {[%clk
0:03:01.9]} 7. O-O {[%clk 0:03:05.4]} 7... Bg4 {[%clk 0:03:02.9]} 8. Nbd2 {[%clk
0:03:04.3]} 8... c6 {[%clk 0:03:04.1]} 9. c3 {[%clk 0:03:04.9]} 9... Nbd7 {[%clk
0:03:05.2]} 10. Qc2 {[%clk 0:03:04.2]} 10... Bh5 {[%clk 0:03:05.2]} 11. Rfe1
{[%clk 0:03:03.2]} 11... Bg6 {[%clk 0:03:05.8]} 12. Bxg6 {[%clk 0:02:57.7]}
12... hxg6 {[%clk 0:03:07.7]} 13. Bxf6 {[%clk 0:02:53.2]} 13... Nxf6 {[%clk
0:03:07.5]} 14. Ne5 {[%clk 0:02:53.3]} 14... Bd6 {[%clk 0:03:07.2]} 15. f4
{[%clk 0:02:54.6]} 15... c5 {[%clk 0:03:05.5]} 16. dxc5 {[%clk 0:02:51.3]} 16...
Bxc5+ {[%clk 0:03:05.3]} 17. Kh1 {[%clk 0:02:52.5]} 17... Rc8 {[%clk 0:03:03.5]}
18. Rad1 {[%clk 0:02:48.5]} 18... Qc7 {[%clk 0:02:59.2]} 19. Qd3 {[%clk
0:02:44.3]} 19... Rfd8 {[%clk 0:02:55.6]} 20. Re2 {[%clk 0:02:19.9]} 20... Ne4
{[%clk 0:02:48.5]} 21. Rf1 {[%clk 0:02:14.8]} 21... f5 {[%clk 0:02:22.6]} 22.
Nxg6 {[%clk 0:02:04.3]} 22... Qf7 {[%clk 0:02:19.5]} 23. Ne5 {[%clk 0:01:52.8]}
23... Qh5 {[%clk 0:02:19]} 24. Nxe4 {[%clk 0:01:49.2]} 24... fxe4 {[%clk
0:02:12.1]} 25. Qd1 {[%clk 0:01:47.6]} 25... Rd6 {[%clk 0:02:09.3]} 26. Rd2
{[%clk 0:01:44]} 26... Qxd1 {[%clk 0:01:55.6]} 27. Rfxd1 {[%clk 0:01:45.9]}
27... Rcd8 {[%clk 0:01:51.7]} 28. g3 {[%clk 0:01:45.8]} 28... a5 {[%clk
0:01:18.7]} 29. a4 {[%clk 0:01:43.4]} 29... Kf8 {[%clk 0:01:01.1]} 30. Kg2
{[%clk 0:01:42.8]} 30... Ke7 {[%clk 0:01:02.4]} 31. h4 {[%clk 0:01:40.1]} 31...
Ke6 {[%clk 0:01:03.4]} 32. Re2 {[%clk 0:01:22.6]} 32... Kf5 {[%clk 0:01:00.4]}
33. Rf1 {[%clk 0:01:23.6]} 33... e3 {[%clk 0:00:49.4]} 34. Kf3 {[%clk
0:01:23.4]} 34... d4 {[%clk 0:00:50.8]} 35. g4+ {[%clk 0:01:20.5]} 35... Ke6
{[%clk 0:00:51.8]} 36. cxd4 {[%clk 0:01:16.9]} 36... Bxd4 {[%clk 0:00:35.3]} 37.
Nc4 {[%clk 0:01:16.7]} 37... Rc6 {[%clk 0:00:25.7]} 38. Nxe3 {[%clk 0:01:15.6]}
38... Kf7 {[%clk 0:00:21.9]} 39. Nf5 {[%clk 0:01:12.8]} 39... Bc5 {[%clk
0:00:22.9]} 40. Rc1 {[%clk 0:00:56.9]} 40... Rd3+ {[%clk 0:00:22]} 41. Kg2
{[%clk 0:00:57.4]} 41... g6 {[%clk 0:00:22.7]} 42. Ng3 {[%clk 0:00:50.5]} 42...
Bd6 {[%clk 0:00:11.7]} 43. Rxc6 {[%clk 0:00:46.2]} 43... bxc6 {[%clk 0:00:13.6]}
44. Ne4 {[%clk 0:00:45.5]} 44... Be7 {[%clk 0:00:09.8]} 45. Ng5+ {[%clk
0:00:33.9]} 45... Bxg5 {[%clk 0:00:10.8]} 46. hxg5 {[%clk 0:00:35.8]} 46... Rd4
{[%clk 0:00:12.5]} 47. Kf3 {[%clk 0:00:34.4]} 47... Rxa4 {[%clk 0:00:11]} 48.
Rc2 {[%clk 0:00:34.6]} 48... Rb4 {[%clk 0:00:11.1]} 49. Rxc6 {[%clk 0:00:35.8]}
49... Rxb2 {[%clk 0:00:05.8]} 50. Rc7+ {[%clk 0:00:36.6]} 50... Kf8 {[%clk
0:00:06.8]} 51. Ra7 {[%clk 0:00:36.4]} 51... Rb5 {[%clk 0:00:04.5]} 52. Ke4
{[%clk 0:00:35.6]} 52... Rb4+ {[%clk 0:00:05.9]} 53. Ke5 {[%clk 0:00:36.4]}
53... Rb5+ {[%clk 0:00:07.4]} 54. Ke4 {[%clk 0:00:35.4]} 54... Rb4+ {[%clk
0:00:08.8]} 55. Kf3 {[%clk 0:00:35.3]} 55... Rb3+ {[%clk 0:00:10.2]} 56. Kg2
{[%clk 0:00:36.5]} 56... Rb2+ {[%clk 0:00:11.7]} 57. Kg3 {[%clk 0:00:37.6]}
57... Rb3+ {[%clk 0:00:13]} 58. Kh4 {[%clk 0:00:38.7]} 58... Rb4 {[%clk
0:00:14.5]} 59. Ra6 {[%clk 0:00:14.7]} 59... Rxf4 {[%clk 0:00:11.9]} 60. Rxg6
{[%clk 0:00:15.2]} 60... Rf1 {[%clk 0:00:13.1]} 61. Ra6 {[%clk 0:00:12.2]} 61...
Rh1+ {[%clk 0:00:14.2]} 62. Kg3 {[%clk 0:00:13.1]} 62... Ra1 {[%clk 0:00:16]}
63. g6 {[%clk 0:00:12.3]} 63... a4 {[%clk 0:00:17]} 64. Kf4 {[%clk 0:00:11.5]}
64... a3 {[%clk 0:00:15.2]} 65. Kg5 {[%clk 0:00:12.3]} 65... a2 {[%clk
0:00:16.8]} 66. Ra8+ {[%clk 0:00:13.5]} 66... Kg7 {[%clk 0:00:17.4]} 67. Ra7+
{[%clk 0:00:14.7]} 67... Kg8 {[%clk 0:00:18.9]} 68. g7 {[%clk 0:00:09.7]} 68...
Kh7 {[%clk 0:00:17.7]} 69. Ra8 {[%clk 0:00:04.5]} 69... Kxg7 {[%clk 0:00:18.6]}
70. Ra7+ {[%clk 0:00:06]} 70... Kf8 {[%clk 0:00:19.6]} 71. Kg6 {[%clk
0:00:07.5]} 71... Rg1 {[%clk 0:00:16.7]} 72. Rxa2 {[%clk 0:00:08.8]} 72... Rxg4+
{[%clk 0:00:17.4]} 73. Kf6 {[%clk 0:00:10.4]} 73... Rf4+ {[%clk 0:00:18.4]} 74.
Ke6 {[%clk 0:00:11.9]} 74... Rf1 {[%clk 0:00:19]} 75. Ra8+ {[%clk 0:00:11.8]}
75... Kg7 {[%clk 0:00:19.4]} 1/2-1/2

[Event "*** Titled Tuesday 3|2 Blitz"]
[Site "Chess.com"]
[Date "2014.12.30"]
[Round "2"]
[White "jasrom"]
[Black "PauloCesarCosta"]
[Result "1-0"]
[WhiteElo "2209"]
[BlackElo "2089"]
[TimeControl "180+2"]
[EndTime "11:24:01 PST"]
[Termination "jasrom won on time"]

1. e4 {[%clk 0:03:00]} 1... e6 {[%clk 0:02:58]} 2. d4 {[%clk 0:02:59.5]} 2... d5
{[%clk 0:02:59.5]} 3. Nd2 {[%clk 0:03:00.5]} 3... Nf6 {[%clk 0:02:59.6]} 4. e5
{[%clk 0:03:01.2]} 4... Nfd7 {[%clk 0:03:01.2]} 5. Bd3 {[%clk 0:03:02.7]} 5...
c5 {[%clk 0:03:02.8]} 6. c3 {[%clk 0:03:04.3]} 6... Nc6 {[%clk 0:03:04.5]} 7.
Ne2 {[%clk 0:03:05.6]} 7... Qb6 {[%clk 0:03:02.6]} 8. Nf3 {[%clk 0:03:04.3]}
8... cxd4 {[%clk 0:03:02]} 9. cxd4 {[%clk 0:03:05.4]} 9... f6 {[%clk 0:03:03.6]}
10. exf6 {[%clk 0:03:05.9]} 10... Nxf6 {[%clk 0:03:03]} 11. O-O {[%clk
0:03:06.3]} 11... Bd6 {[%clk 0:03:03.8]} 12. Rb1 {[%clk 0:03:01.9]} 12... O-O
{[%clk 0:03:01]} 13. Bf4 {[%clk 0:03:01.7]} 13... Nxd4 {[%clk 0:02:45]} 14.
Nfxd4 {[%clk 0:02:27.4]} 14... e5 {[%clk 0:02:38.3]} 15. Be3 {[%clk 0:02:27.6]}
15... exd4 {[%clk 0:02:34.5]} 16. Bxd4 {[%clk 0:02:26.2]} 16... Qc7 {[%clk
0:02:29.2]} 17. Ng3 {[%clk 0:02:25.5]} 17... Bg4 {[%clk 0:02:22.1]} 18. Qb3
{[%clk 0:02:22.1]} 18... Be6 {[%clk 0:02:19]} 19. Rbc1 {[%clk 0:02:17.7]} 19...
Qf7 {[%clk 0:02:13.4]} 20. Rfe1 {[%clk 0:01:32.2]} 20... b6 {[%clk 0:02:14]} 21.
Rc6 {[%clk 0:01:18.1]} 21... Rad8 {[%clk 0:02:12.7]} 22. Bb1 {[%clk 0:01:00.3]}
22... Ne4 {[%clk 0:02:06.8]} 23. Qe3 {[%clk 0:00:44.4]} 23... Bd7 {[%clk
0:01:58.2]} 24. Rc2 {[%clk 0:00:35]} 24... Nxg3 {[%clk 0:01:58.7]} 25. hxg3
{[%clk 0:00:32.3]} 25... Rde8 {[%clk 0:01:54.9]} 26. Qd2 {[%clk 0:00:32.1]}
26... Rxe1+ {[%clk 0:01:48]} 27. Qxe1 {[%clk 0:00:33.2]} 27... Bf5 {[%clk
0:01:40.1]} 28. Re2 {[%clk 0:00:30.4]} 28... Bxb1 {[%clk 0:01:34]} 29. Qxb1
{[%clk 0:00:30.1]} 29... Bc5 {[%clk 0:01:31.5]} 30. Qd3 {[%clk 0:00:29.8]} 30...
Bxd4 {[%clk 0:01:26.4]} 31. Qxd4 {[%clk 0:00:30.7]} 31... Rd8 {[%clk 0:01:21.9]}
32. Re5 {[%clk 0:00:29.3]} 32... Qd7 {[%clk 0:01:17.5]} 33. Rg5 {[%clk 0:00:25]}
33... b5 {[%clk 0:01:12.9]} 34. b4 {[%clk 0:00:21.2]} 34... Qf7 {[%clk
0:01:08.5]} 35. g4 {[%clk 0:00:18.9]} 35... a6 {[%clk 0:01:04.9]} 36. Rf5 {[%clk
0:00:19.7]} 36... Qd7 {[%clk 0:01:00.4]} 37. Rg5 {[%clk 0:00:17.1]} 37... Kh8
{[%clk 0:00:51.8]} 38. f3 {[%clk 0:00:14.9]} 38... Qb7 {[%clk 0:00:47.7]} 39.
Re5 {[%clk 0:00:15.3]} 39... Qf7 {[%clk 0:00:37.6]} 40. Kh2 {[%clk 0:00:13.9]}
40... h6 {[%clk 0:00:34.8]} 41. Rh5 {[%clk 0:00:13.8]} 41... Kg8 {[%clk
0:00:34.5]} 42. Kh3 {[%clk 0:00:13]} 42... Qd7 {[%clk 0:00:32.6]} 43. Rf5 {[%clk
0:00:12.4]} 43... Qe6 {[%clk 0:00:28.6]} 44. Re5 {[%clk 0:00:12.6]} 44... Qd7
{[%clk 0:00:29.3]} 45. g3 {[%clk 0:00:12.9]} 45... Qf7 {[%clk 0:00:29.4]} 46. f4
{[%clk 0:00:12.7]} 46... Qd7 {[%clk 0:00:29.1]} 47. Rf5 {[%clk 0:00:10.2]} 47...
Qe6 {[%clk 0:00:28.7]} 48. Re5 {[%clk 0:00:11.1]} 48... Qd7 {[%clk 0:00:29.9]}
49. Kh4 {[%clk 0:00:11.8]} 49... Qd6 {[%clk 0:00:24.8]} 50. g5 {[%clk
0:00:12.7]} 50... hxg5+ {[%clk 0:00:21.9]} 51. Rxg5 {[%clk 0:00:13.5]} 51... Qe7
{[%clk 0:00:17.2]} 52. Kh3 {[%clk 0:00:11.8]} 52... Qd7+ {[%clk 0:00:18.1]} 53.
g4 {[%clk 0:00:12.3]} 53... Qf7 {[%clk 0:00:14.7]} 54. Kg3 {[%clk 0:00:12.2]}
54... Qd7 {[%clk 0:00:14.7]} 55. Re5 {[%clk 0:00:12]} 55... Qf7 {[%clk
0:00:15.5]} 56. g5 {[%clk 0:00:12.3]} 56... Qd7 {[%clk 0:00:15.2]} 57. f5 {[%clk
0:00:12.9]} 57... Qd6 {[%clk 0:00:14.6]} 58. Kg4 {[%clk 0:00:13.6]} 58... Qd7
{[%clk 0:00:14.8]} 59. Re6 {[%clk 0:00:13.4]} 59... Qf7 {[%clk 0:00:14.5]} 60.
g6 {[%clk 0:00:13.8]} 60... Qd7 {[%clk 0:00:13.9]} 61. Qe5 {[%clk 0:00:12.6]}
61... Qc8 {[%clk 0:00:07]} 62. Re7 {[%clk 0:00:05.5]} 62... Qc4+ {[%clk
0:00:07.6]} 63. Kh5 {[%clk 0:00:05.5]} 1-0